[Event "*** Titled Tuesday 3|2 Blitz"]
[Site "Chess.com"]
[Date "2015.12.01"]
[Round "5"]
[White "Penguininja"]
[Black "alex_zapata"]
[Result "0-1"]
[WhiteElo "2174"]
[BlackElo "2170"]
[TimeControl "180+2"]
[EndTime "18:02:16 PST"]
[Termination "alex_zapata won by resignation"]

1. d4 {[%clk 0:03:01.9]} 1... d5 {[%clk 0:02:59.4]} 2. Nf3 {[%clk 0:03:01.3]}
2... Nf6 {[%clk 0:03:00.8]} 3. c4 {[%clk 0:03:02.4]} 3... c6 {[%clk 0:03:01.4]}
4. e3 {[%clk 0:03:03.3]} 4... e6 {[%clk 0:03:02.5]} 5. b3 {[%clk 0:03:01.8]}
5... Nbd7 {[%clk 0:03:03.1]} 6. Bd3 {[%clk 0:03:03.2]} 6... Bd6 {[%clk
0:03:02.4]} 7. Bb2 {[%clk 0:03:04.4]} 7... O-O {[%clk 0:03:02.7]} 8. O-O {[%clk
0:03:03.5]} 8... Qe7 {[%clk 0:03:04]} 9. Ne5 {[%clk 0:03:02.1]} 9... c5 {[%clk
0:03:00.2]} 10. Nd2 {[%clk 0:02:52]} 10... b6 {[%clk 0:02:55.9]} 11. Qf3 {[%clk
0:02:44.7]} 11... Bb7 {[%clk 0:02:55.2]} 12. Qh3 {[%clk 0:02:41.4]} 12... h6
{[%clk 0:02:46.2]} 13. f4 {[%clk 0:02:33.7]} 13... Ne4 {[%clk 0:02:43.2]} 14.
Ndf3 {[%clk 0:02:27.4]} 14... Rac8 {[%clk 0:02:28.8]} 15. Rae1 {[%clk
0:01:57.3]} 15... a6 {[%clk 0:02:22.5]} 16. Ng4 {[%clk 0:01:36.9]} 16... f5
{[%clk 0:02:19.6]} 17. Nge5 {[%clk 0:01:34.7]} 17... Bxe5 {[%clk 0:02:19.9]} 18.
dxe5 {[%clk 0:01:24.8]} 18... Rfd8 {[%clk 0:02:08.4]} 19. g4 {[%clk 0:01:20.6]}
19... fxg4 {[%clk 0:02:01]} 20. Qxg4 {[%clk 0:01:21.1]} 20... Nf8 {[%clk
0:01:53.2]} 21. h3 {[%clk 0:00:59.9]} 21... dxc4 {[%clk 0:01:51.1]} 22. Bxc4
{[%clk 0:01:00.7]} 22... b5 {[%clk 0:01:51.4]} 23. Be2 {[%clk 0:00:59.7]} 23...
Nd2 {[%clk 0:01:42.8]} 24. Rf2 {[%clk 0:00:48]} 24... c4 {[%clk 0:01:22.1]} 25.
bxc4 {[%clk 0:00:39.9]} 25... bxc4 {[%clk 0:01:22.6]} 26. Rc1 {[%clk 0:00:25.1]}
26... Ne4 {[%clk 0:01:12.9]} 27. Rg2 {[%clk 0:00:24.9]} 27... c3 {[%clk
0:01:13.8]} 28. Ba1 {[%clk 0:00:25]} 28... c2 {[%clk 0:01:11.6]} 29. Bb2 {[%clk
0:00:25.7]} 29... Nd2 {[%clk 0:01:08.1]} 30. Ba3 {[%clk 0:00:20.7]} 30... Qf7
{[%clk 0:01:04.5]} 31. Nxd2 {[%clk 0:00:14.6]} 31... Rxd2 {[%clk 0:01:04]} 32.
Rf2 {[%clk 0:00:14.6]} 32... Be4 {[%clk 0:00:58.7]} 33. Bxa6 {[%clk 0:00:11.4]}
33... h5 {[%clk 0:00:39.8]} 34. Qh4 {[%clk 0:00:08.3]} 34... Rd1+ {[%clk
0:00:37.6]} 35. Bf1 {[%clk 0:00:02.7]} 35... Rcd8 {[%clk 0:00:32]} 36. Kh2
{[%clk 0:00:03.7]} 36... Rxc1 {[%clk 0:00:31.3]} 37. Bxc1 {[%clk 0:00:05.3]}
37... Rd1 {[%clk 0:00:32]} 38. Ba3 {[%clk 0:00:06.4]} 38... c1=Q {[%clk
0:00:32]} 39. Bxc1 {[%clk 0:00:08]} 39... Rxc1 {[%clk 0:00:33.7]} 40. Be2 {[%clk
0:00:09.9]} 40... Rh1+ {[%clk 0:00:33.1]} 41. Kg3 {[%clk 0:00:08.9]} 41... Qg6+
{[%clk 0:00:32.5]} 42. Qg5 {[%clk 0:00:10.2]} 42... Rg1+ {[%clk 0:00:32]} 43.
Kh4 {[%clk 0:00:10.9]} 43... Rxg5 {[%clk 0:00:32.2]} 44. fxg5 {[%clk 0:00:12.8]}
44... Bf5 {[%clk 0:00:33.2]} 45. Bxh5 {[%clk 0:00:13.7]} 45... Qh7 {[%clk
0:00:32.8]} 46. Rxf5 {[%clk 0:00:14.7]} 46... exf5 {[%clk 0:00:32.1]} 47. e6
{[%clk 0:00:16.6]} 47... g6 {[%clk 0:00:32.8]} 48. Kg3 {[%clk 0:00:18.5]} 48...
Qxh5 {[%clk 0:00:33.6]} 0-1

[Event "*** Titled Tuesday 3|2 Blitz"]
[Site "Chess.com"]
[Date "2015.12.01"]
[Round "5"]
[White "Viaje"]
[Black "Cararay"]
[Result "0-1"]
[WhiteElo "2179"]
[BlackElo "2222"]
[TimeControl "180+2"]
[EndTime "18:02:37 PST"]
[Termination "Cararay won by resignation"]

1. d4 {[%clk 0:03:01.9]} 1... d5 {[%clk 0:03:00.1]} 2. c4 {[%clk 0:03:03.3]}
2... dxc4 {[%clk 0:03:00.7]} 3. e4 {[%clk 0:03:03.1]} 3... Nf6 {[%clk 0:03:01]}
4. e5 {[%clk 0:03:03.5]} 4... Nd5 {[%clk 0:03:01.5]} 5. Bxc4 {[%clk 0:03:04.5]}
5... Nb6 {[%clk 0:03:02.8]} 6. Bd3 {[%clk 0:03:05.5]} 6... Nc6 {[%clk
0:03:02.2]} 7. Be3 {[%clk 0:03:03.3]} 7... Nb4 {[%clk 0:02:46]} 8. Be4 {[%clk
0:03:03.2]} 8... c6 {[%clk 0:02:45.5]} 9. Nc3 {[%clk 0:03:01.2]} 9... N4d5
{[%clk 0:02:46]} 10. Nge2 {[%clk 0:02:56.9]} 10... Bg4 {[%clk 0:02:45.8]} 11. a4
{[%clk 0:02:53]} 11... Bxe2 {[%clk 0:02:43.4]} 12. Qxe2 {[%clk 0:02:51.3]} 12...
e6 {[%clk 0:02:43.3]} 13. O-O {[%clk 0:02:47.5]} 13... a5 {[%clk 0:02:41.4]} 14.
Bd2 {[%clk 0:02:46.6]} 14... Nb4 {[%clk 0:02:35.4]} 15. Be3 {[%clk 0:02:43.2]}
15... Be7 {[%clk 0:02:35.3]} 16. f4 {[%clk 0:02:43.6]} 16... N6d5 {[%clk
0:02:33.8]} 17. f5 {[%clk 0:02:41.7]} 17... exf5 {[%clk 0:02:05.5]} 18. Rxf5
{[%clk 0:02:35.2]} 18... f6 {[%clk 0:01:53.1]} 19. Rff1 {[%clk 0:01:55.1]} 19...
Nxe3 {[%clk 0:01:45.1]} 20. Qxe3 {[%clk 0:01:55.8]} 20... O-O {[%clk 0:01:37.7]}
21. Rad1 {[%clk 0:01:43]} 21... Qb6 {[%clk 0:01:37.4]} 22. Qh3 {[%clk
0:01:36.1]} 22... g6 {[%clk 0:01:05.2]} 23. Qe6+ {[%clk 0:01:35.1]} 23... Rf7
{[%clk 0:01:05.4]} 24. exf6 {[%clk 0:01:33.4]} 24... Bf8 {[%clk 0:01:05.6]} 25.
Nd5 {[%clk 0:01:17.8]} 25... Qd8 {[%clk 0:00:50.3]} 26. Nxb4 {[%clk 0:01:18.2]}
26... Bxb4 {[%clk 0:00:38]} 27. d5 {[%clk 0:01:18.1]} 27... Qe8 {[%clk
0:00:31.7]} 28. Qxe8+ {[%clk 0:00:53.1]} 28... Rxe8 {[%clk 0:00:31.6]} 29. Rf4
{[%clk 0:00:38.8]} 29... Bd6 {[%clk 0:00:26.5]} 30. Rg4 {[%clk 0:00:26.3]} 30...
Bc5+ {[%clk 0:00:25.6]} 31. Kh1 {[%clk 0:00:22.8]} 31... Rxf6 {[%clk 0:00:24.5]}
32. dxc6 {[%clk 0:00:21.2]} 32... bxc6 {[%clk 0:00:24.7]} 33. h4 {[%clk
0:00:22.6]} 33... Kf7 {[%clk 0:00:22]} 34. Rc1 {[%clk 0:00:19.9]} 34... Re5
{[%clk 0:00:18.2]} 35. Bf3 {[%clk 0:00:17.5]} 35... Be3 {[%clk 0:00:15.2]} 36.
Rc3 {[%clk 0:00:15.2]} 36... c5 {[%clk 0:00:15.6]} 37. Re4 {[%clk 0:00:04.8]}
37... Rxe4 {[%clk 0:00:13.3]} 38. Bxe4 {[%clk 0:00:06.7]} 38... Bd4 {[%clk
0:00:13.1]} 39. Kh2 {[%clk 0:00:08]} 39... Bxc3 {[%clk 0:00:13.5]} 40. bxc3
{[%clk 0:00:09.9]} 40... Rf4 {[%clk 0:00:14.1]} 41. Bc6 {[%clk 0:00:09.7]} 41...
Rxh4+ {[%clk 0:00:14.6]} 42. Kg3 {[%clk 0:00:11.6]} 42... Rc4 {[%clk 0:00:15.5]}
0-1

[Event "*** Titled Tuesday 3|2 Blitz"]
[Site "Chess.com"]
[Date "2015.12.01"]
[Round "5"]
[White "MisaPap"]
[Black "GianmarcoVaR"]
[Result "1-0"]
[WhiteElo "2429"]
[BlackElo "2311"]
[TimeControl "180+2"]
[EndTime "18:02:40 PST"]
[Termination "MisaPap won by resignation"]

1. e4 {[%clk 0:03:01.9]} 1... c6 {[%clk 0:03:00.4]} 2. d4 {[%clk 0:03:02.1]}
2... d5 {[%clk 0:03:01.8]} 3. Nd2 {[%clk 0:03:03.1]} 3... dxe4 {[%clk
0:03:02.6]} 4. Nxe4 {[%clk 0:03:04.1]} 4... Bf5 {[%clk 0:03:03.8]} 5. Ng3 {[%clk
0:03:04.9]} 5... Bg6 {[%clk 0:03:05.4]} 6. h4 {[%clk 0:03:06.1]} 6... h6 {[%clk
0:03:06.4]} 7. Nf3 {[%clk 0:03:06.9]} 7... Nd7 {[%clk 0:03:07.5]} 8. h5 {[%clk
0:03:07.8]} 8... Bh7 {[%clk 0:03:08.9]} 9. Bd3 {[%clk 0:03:08.7]} 9... Bxd3
{[%clk 0:03:10.4]} 10. Qxd3 {[%clk 0:03:09.8]} 10... e6 {[%clk 0:03:12.1]} 11.
Bd2 {[%clk 0:03:10.9]} 11... Qc7 {[%clk 0:03:10]} 12. O-O-O {[%clk 0:03:09]}
12... Ngf6 {[%clk 0:03:11.2]} 13. Qe2 {[%clk 0:03:07.9]} 13... O-O-O {[%clk
0:03:12]} 14. Ne5 {[%clk 0:03:08.4]} 14... Nxe5 {[%clk 0:03:07.6]} 15. dxe5
{[%clk 0:03:08.7]} 15... Nd7 {[%clk 0:03:06.2]} 16. f4 {[%clk 0:03:09]} 16...
Be7 {[%clk 0:03:03.5]} 17. Ne4 {[%clk 0:03:08.5]} 17... Nc5 {[%clk 0:03:04.3]}
18. g4 {[%clk 0:02:59]} 18... Nxe4 {[%clk 0:02:30.2]} 19. Qxe4 {[%clk
0:02:58.9]} 19... Rd5 {[%clk 0:02:31.8]} 20. c4 {[%clk 0:02:58.7]} 20... Rd7
{[%clk 0:02:32.4]} 21. Bc3 {[%clk 0:02:57.1]} 21... Rhd8 {[%clk 0:02:32.6]} 22.
Rxd7 {[%clk 0:02:45.2]} 22... Qxd7 {[%clk 0:02:33.2]} 23. Kc2 {[%clk 0:02:46.1]}
23... Kc7 {[%clk 0:02:11.4]} 24. f5 {[%clk 0:02:45.9]} 24... Bg5 {[%clk
0:02:09.4]} 25. Rf1 {[%clk 0:02:39.4]} 25... b6 {[%clk 0:02:09.6]} 26. b3 {[%clk
0:02:36.3]} 26... c5 {[%clk 0:02:04.2]} 27. a4 {[%clk 0:02:29.8]} 27... Qc6
{[%clk 0:02:04.3]} 28. Qxc6+ {[%clk 0:02:25.9]} 28... Kxc6 {[%clk 0:02:05.9]}
29. a5 {[%clk 0:02:00]} 29... Rd7 {[%clk 0:01:35.8]} 30. axb6 {[%clk 0:01:31.2]}
30... axb6 {[%clk 0:01:36.3]} 31. Ra1 {[%clk 0:01:32.6]} 31... Kb7 {[%clk
0:01:28.9]} 32. Rf1 {[%clk 0:01:30.7]} 32... Kc6 {[%clk 0:01:23]} 33. Ra1 {[%clk
0:01:30.2]} 33... Kb7 {[%clk 0:01:22.3]} 34. Rd1 {[%clk 0:01:26.8]} 34... Kc6
{[%clk 0:01:11.6]} 35. Rxd7 {[%clk 0:01:25.2]} 35... Kxd7 {[%clk 0:01:12.6]} 36.
Kd3 {[%clk 0:01:26]} 36... Ke7 {[%clk 0:00:38.8]} 37. Ke4 {[%clk 0:01:24]} 37...
f6 {[%clk 0:00:25.4]} 38. b4 {[%clk 0:01:18.8]} 38... fxe5 {[%clk 0:00:21.2]}
39. b5 {[%clk 0:01:07]} 39... exf5+ {[%clk 0:00:14.8]} 40. Kxf5 {[%clk
0:01:06.6]} 40... Kf7 {[%clk 0:00:06.5]} 41. Bxe5 {[%clk 0:01:06.1]} 41... Bd2
{[%clk 0:00:06.3]} 42. Bc7 {[%clk 0:01:05.5]} 42... Ba5 {[%clk 0:00:07.3]} 43.
Bd8 {[%clk 0:01:02.6]} 43... Ke8 {[%clk 0:00:08.3]} 44. Bh4 {[%clk 0:01:02.7]}
44... Bc3 {[%clk 0:00:05.2]} 45. Bg3 {[%clk 0:01:02]} 45... Kf7 {[%clk
0:00:03.8]} 46. Bf4 {[%clk 0:01:02.9]} 46... Be1 {[%clk 0:00:03.2]} 47. Bc7
{[%clk 0:00:54.8]} 47... Ba5 {[%clk 0:00:04.2]} 48. Ke5 {[%clk 0:00:55.3]} 48...
Ke7 {[%clk 0:00:05.6]} 49. Kd5 {[%clk 0:00:55.3]} 49... Kd7 {[%clk 0:00:04.3]}
50. Be5 {[%clk 0:00:55.8]} 50... Bd2 {[%clk 0:00:04.3]} 51. Bxg7 {[%clk
0:00:56]} 51... Bg5 {[%clk 0:00:05.3]} 52. Ke5 {[%clk 0:00:55.5]} 52... Ke7
{[%clk 0:00:05.4]} 53. Kf5 {[%clk 0:00:56.4]} 53... Kd6 {[%clk 0:00:03.3]} 54.
Be5+ {[%clk 0:00:55.1]} 1-0

[Event "*** Titled Tuesday 3|2 Blitz"]
[Site "Chess.com"]
[Date "2015.12.01"]
[Round "5"]
[White "adypady02"]
[Black "1stSecond"]
[Result "1-0"]
[WhiteElo "2506"]
[BlackElo "2468"]
[TimeControl "180+2"]
[EndTime "18:02:43 PST"]
[Termination "adypady02 won by resignation"]

1. e4 {[%clk 0:03:01.9]} 1... e5 {[%clk 0:02:57.2]} 2. Nf3 {[%clk 0:03:00.5]}
2... Nc6 {[%clk 0:02:57.2]} 3. Bb5 {[%clk 0:02:59.6]} 3... a6 {[%clk 0:02:57]}
4. Ba4 {[%clk 0:03:00.3]} 4... Nge7 {[%clk 0:02:58.2]} 5. O-O {[%clk 0:02:59.9]}
5... g6 {[%clk 0:02:59.2]} 6. d4 {[%clk 0:02:52]} 6... exd4 {[%clk 0:02:59.9]}
7. Nxd4 {[%clk 0:02:52.7]} 7... Bg7 {[%clk 0:03:00.9]} 8. Nxc6 {[%clk
0:02:52.5]} 8... Nxc6 {[%clk 0:03:02.4]} 9. Nc3 {[%clk 0:02:54]} 9... O-O {[%clk
0:03:02.3]} 10. Be3 {[%clk 0:02:54]} 10... d6 {[%clk 0:03:01.8]} 11. Qd2 {[%clk
0:02:52.5]} 11... Re8 {[%clk 0:03:01.8]} 12. Bh6 {[%clk 0:02:50.5]} 12... Be6
{[%clk 0:02:50]} 13. Rfe1 {[%clk 0:02:41.6]} 13... Qh4 {[%clk 0:02:33.6]} 14.
Bxg7 {[%clk 0:02:38.8]} 14... Kxg7 {[%clk 0:02:34]} 15. Bxc6 {[%clk 0:02:33.5]}
15... bxc6 {[%clk 0:02:34.3]} 16. Re3 {[%clk 0:02:35.1]} 16... Rab8 {[%clk
0:02:27.4]} 17. b3 {[%clk 0:02:25.8]} 17... Qf6 {[%clk 0:02:22.4]} 18. Rae1
{[%clk 0:02:21.7]} 18... Qe5 {[%clk 0:02:11.4]} 19. Rg3 {[%clk 0:02:13.9]} 19...
c5 {[%clk 0:02:02.5]} 20. Ree3 {[%clk 0:02:03.6]} 20... Rb4 {[%clk 0:01:56.6]}
21. h3 {[%clk 0:01:51.6]} 21... Rd4 {[%clk 0:01:57]} 22. Qe1 {[%clk 0:01:52.4]}
22... h5 {[%clk 0:01:51.1]} 23. Qf1 {[%clk 0:01:21.8]} 23... Rd2 {[%clk
0:01:39.8]} 24. f4 {[%clk 0:01:23]} 24... Qd4 {[%clk 0:01:40.2]} 25. Ne2 {[%clk
0:01:22.8]} 25... Qf6 {[%clk 0:01:30.9]} 26. f5 {[%clk 0:01:19.6]} 26... Bd7
{[%clk 0:01:28.7]} 27. Nf4 {[%clk 0:01:20.8]} 27... Kh6 {[%clk 0:01:05.2]} 28.
Nd5 {[%clk 0:01:09]} 28... Rxd5 {[%clk 0:00:43.4]} 29. exd5 {[%clk 0:00:51.1]}
29... Rxe3 {[%clk 0:00:43.9]} 30. Qf4+ {[%clk 0:00:37.7]} 30... Kg7 {[%clk
0:00:42.6]} 31. Rxe3 {[%clk 0:00:37.7]} 31... Bxf5 {[%clk 0:00:43.7]} 32. c3
{[%clk 0:00:36]} 32... g5 {[%clk 0:00:39.5]} 33. Qf2 {[%clk 0:00:35]} 33... Bg6
{[%clk 0:00:39.3]} 34. Qd2 {[%clk 0:00:27.4]} 34... h4 {[%clk 0:00:29]} 35. Rf3
{[%clk 0:00:18.4]} 35... Qe5 {[%clk 0:00:29.7]} 36. Re3 {[%clk 0:00:19.5]} 36...
Qf4 {[%clk 0:00:30.4]} 37. Qf2 {[%clk 0:00:16.7]} 37... Kf6 {[%clk 0:00:26.1]}
38. Rf3 {[%clk 0:00:11.7]} 38... Ke5 {[%clk 0:00:26.4]} 39. Rxf4 {[%clk
0:00:13.1]} 39... gxf4 {[%clk 0:00:28.3]} 40. Qxh4 {[%clk 0:00:14.4]} 40... Be4
{[%clk 0:00:21.8]} 41. Qe7+ {[%clk 0:00:15.1]} 41... Kxd5 {[%clk 0:00:21.3]} 42.
Qf6 {[%clk 0:00:15.5]} 42... Bb1 {[%clk 0:00:20.1]} 43. Qxf4 {[%clk 0:00:16.2]}
43... Kc6 {[%clk 0:00:18.9]} 44. a3 {[%clk 0:00:16.5]} 44... Ba2 {[%clk
0:00:19.1]} 45. b4 {[%clk 0:00:17.6]} 45... Kb6 {[%clk 0:00:20.5]} 46. bxc5+
{[%clk 0:00:18.7]} 46... dxc5 {[%clk 0:00:21.1]} 47. Qf6+ {[%clk 0:00:19.6]}
47... Kb5 {[%clk 0:00:22.4]} 48. h4 {[%clk 0:00:21.3]} 48... c6 {[%clk
0:00:23.7]} 49. h5 {[%clk 0:00:22.9]} 49... Ka4 {[%clk 0:00:23.9]} 50. Qxc6+
{[%clk 0:00:23]} 50... Kxa3 {[%clk 0:00:25.1]} 51. Qxc5+ {[%clk 0:00:24.6]}
51... Kb2 {[%clk 0:00:26.8]} 52. Qb4+ {[%clk 0:00:25.3]} 52... Kc1 {[%clk
0:00:27.2]} 53. h6 {[%clk 0:00:26.3]} 53... Bb1 {[%clk 0:00:28.9]} 54. Qxb1+
{[%clk 0:00:26.4]} 1-0

[Event "*** Titled Tuesday 3|2 Blitz"]
[Site "Chess.com"]
[Date "2015.12.01"]
[Round "5"]
[White "oskariot"]
[Black "Carolina-moon"]
[Result "1-0"]
[WhiteElo "2238"]
[BlackElo "2030"]
[TimeControl "180+2"]
[EndTime "18:04:03 PST"]
[Termination "oskariot won by resignation"]

1. e4 {[%clk 0:03:01.9]} 1... c5 {[%clk 0:03:00.7]} 2. Nf3 {[%clk 0:02:59.2]}
2... d6 {[%clk 0:03:01.9]} 3. d4 {[%clk 0:03:00.5]} 3... cxd4 {[%clk 0:03:03.8]}
4. Nxd4 {[%clk 0:03:02.4]} 4... Nf6 {[%clk 0:03:05.4]} 5. Nc3 {[%clk 0:03:04]}
5... a6 {[%clk 0:03:07.1]} 6. f4 {[%clk 0:03:04.3]} 6... e5 {[%clk 0:03:06.7]}
7. Nf3 {[%clk 0:03:05.3]} 7... Nbd7 {[%clk 0:03:08.2]} 8. a4 {[%clk 0:03:06.9]}
8... Be7 {[%clk 0:03:08]} 9. Bd3 {[%clk 0:03:08.6]} 9... O-O {[%clk 0:03:05.2]}
10. O-O {[%clk 0:03:10.2]} 10... exf4 {[%clk 0:03:02.9]} 11. Bxf4 {[%clk
0:03:10.4]} 11... Qb6+ {[%clk 0:03:03.7]} 12. Kh1 {[%clk 0:03:11.9]} 12... Qxb2
{[%clk 0:03:04.6]} 13. Qe1 {[%clk 0:03:13.5]} 13... Nc5 {[%clk 0:02:42.2]} 14.
Rb1 {[%clk 0:01:52.3]} 14... Qa3 {[%clk 0:02:39]} 15. Bc4 {[%clk 0:01:36.9]}
15... Be6 {[%clk 0:02:29.7]} 16. Bc1 {[%clk 0:01:29.7]} 16... Qxc3 {[%clk
0:02:17.6]} 17. Qxc3 {[%clk 0:01:28.2]} 17... Nfxe4 {[%clk 0:02:13.9]} 18. Qe3
{[%clk 0:00:56.7]} 18... Bxc4 {[%clk 0:02:12.2]} 19. Re1 {[%clk 0:00:57.7]}
19... f5 {[%clk 0:02:05.4]} 20. Bb2 {[%clk 0:00:57.3]} 20... b5 {[%clk
0:01:51.3]} 21. axb5 {[%clk 0:00:55.7]} 21... axb5 {[%clk 0:01:51.9]} 22. Ra1
{[%clk 0:00:55.8]} 22... Rae8 {[%clk 0:01:43.4]} 23. Ra7 {[%clk 0:00:55.5]}
23... Rf7 {[%clk 0:01:34.3]} 24. h4 {[%clk 0:00:21.6]} 24... f4 {[%clk
0:01:08.4]} 25. Qa3 {[%clk 0:00:21.3]} 25... Bf8 {[%clk 0:00:56.5]} 26. Rxf7
{[%clk 0:00:21.9]} 26... Kxf7 {[%clk 0:00:57.5]} 27. Ng5+ {[%clk 0:00:17.3]}
27... Nxg5 {[%clk 0:00:56.2]} 28. Rxe8 {[%clk 0:00:17.8]} 28... Kxe8 {[%clk
0:00:49.1]} 29. hxg5 {[%clk 0:00:19]} 29... Be7 {[%clk 0:00:47]} 30. Bxg7 {[%clk
0:00:13.7]} 30... Bxg5 {[%clk 0:00:46.9]} 31. Qa7 {[%clk 0:00:14.9]} 31... Bd5
{[%clk 0:00:41.6]} 32. Bd4 {[%clk 0:00:15.1]} 32... Ne4 {[%clk 0:00:39.9]} 33.
Qxh7 {[%clk 0:00:12.5]} 33... Ng3+ {[%clk 0:00:35.6]} 34. Kh2 {[%clk 0:00:12.6]}
34... Be7 {[%clk 0:00:24.9]} 35. Bf2 {[%clk 0:00:09.8]} 35... Ne4 {[%clk
0:00:24.2]} 36. Qh5+ {[%clk 0:00:10.8]} 36... Bf7 {[%clk 0:00:23.4]} 37. Qxb5+
{[%clk 0:00:12]} 37... Kf8 {[%clk 0:00:22.8]} 38. Bd4 {[%clk 0:00:13.2]} 38...
Ng5 {[%clk 0:00:18.7]} 39. Qb8+ {[%clk 0:00:12.6]} 39... Be8 {[%clk 0:00:17.5]}
40. Kg1 {[%clk 0:00:12.5]} 40... Ne6 {[%clk 0:00:18.1]} 41. Bf2 {[%clk
0:00:11.8]} 41... Kf7 {[%clk 0:00:19.1]} 42. c3 {[%clk 0:00:12.5]} 42... Bc6
{[%clk 0:00:19.2]} 43. Qb6 {[%clk 0:00:12.3]} 43... Be4 {[%clk 0:00:18.8]} 44.
Qb8 {[%clk 0:00:11.3]} 44... Ng5 {[%clk 0:00:17.3]} 45. c4 {[%clk 0:00:11.1]}
45... f3 {[%clk 0:00:18.4]} 46. gxf3 {[%clk 0:00:09.6]} 46... Nxf3+ {[%clk
0:00:19.5]} 47. Kf1 {[%clk 0:00:10.1]} 47... Nd2+ {[%clk 0:00:20.6]} 48. Ke2
{[%clk 0:00:09.3]} 48... Nxc4 {[%clk 0:00:22.5]} 49. Bd4 {[%clk 0:00:09.6]}
49... d5 {[%clk 0:00:18.5]} 50. Qh8 {[%clk 0:00:10.2]} 50... Nd6 {[%clk
0:00:16.7]} 51. Qg7+ {[%clk 0:00:11.1]} 51... Ke8 {[%clk 0:00:18]} 52. Qh8+
{[%clk 0:00:09.9]} 52... Kd7 {[%clk 0:00:19.1]} 53. Qh3+ {[%clk 0:00:10.7]}
53... Bf5 {[%clk 0:00:16.5]} 54. Qb3 {[%clk 0:00:11.8]} 54... Bg4+ {[%clk
0:00:16.6]} 55. Ke3 {[%clk 0:00:11.9]} 55... Nc4+ {[%clk 0:00:16.8]} 56. Kf4
{[%clk 0:00:11.3]} 56... Be6 {[%clk 0:00:18.3]} 57. Qb5+ {[%clk 0:00:11.7]}
57... Kd8 {[%clk 0:00:18.7]} 58. Bc5 {[%clk 0:00:11.8]} 58... Bf6 {[%clk
0:00:15.7]} 59. Qb8+ {[%clk 0:00:12.3]} 59... Kd7 {[%clk 0:00:16.5]} 60. Qb7+
{[%clk 0:00:13]} 60... Kd8 {[%clk 0:00:17.9]} 61. Qc6 {[%clk 0:00:13.6]} 61...
Be5+ {[%clk 0:00:18.1]} 62. Kg5 {[%clk 0:00:14.8]} 62... Bc7 {[%clk 0:00:13.1]}
63. Qxe6 {[%clk 0:00:14.5]} 63... Bb8 {[%clk 0:00:08.4]} 64. Qxd5+ {[%clk
0:00:14.9]} 1-0

[Event "*** Titled Tuesday 3|2 Blitz"]
[Site "Chess.com"]
[Date "2015.12.01"]
[Round "5"]
[White "Gabrielian_Artur"]
[Black "HansCoolNiemann"]
[Result "0-1"]
[WhiteElo "2433"]
[BlackElo "2200"]
[TimeControl "180+2"]
[EndTime "18:04:40 PST"]
[Termination "HansCoolNiemann won by resignation"]

1. e4 {[%clk 0:03:01.5]} 1... e6 {[%clk 0:02:59]} 2. d3 {[%clk 0:03:02.5]} 2...
d5 {[%clk 0:02:59]} 3. Nd2 {[%clk 0:03:03.8]} 3... c5 {[%clk 0:02:57.8]} 4. Ngf3
{[%clk 0:03:04.6]} 4... Nc6 {[%clk 0:02:59]} 5. g3 {[%clk 0:03:06]} 5... g6
{[%clk 0:03:00.2]} 6. Bg2 {[%clk 0:03:07.3]} 6... Bg7 {[%clk 0:03:01.7]} 7. O-O
{[%clk 0:03:08.5]} 7... Nge7 {[%clk 0:03:03.1]} 8. Re1 {[%clk 0:03:09.8]} 8...
O-O {[%clk 0:03:04]} 9. h4 {[%clk 0:03:06.7]} 9... b6 {[%clk 0:03:01.2]} 10. h5
{[%clk 0:03:07.6]} 10... Ba6 {[%clk 0:03:01.9]} 11. exd5 {[%clk 0:03:03.6]}
11... Nxd5 {[%clk 0:02:59.8]} 12. Ne4 {[%clk 0:03:03.8]} 12... Nd4 {[%clk
0:02:58.1]} 13. Nxd4 {[%clk 0:02:59.4]} 13... cxd4 {[%clk 0:03:00]} 14. hxg6
{[%clk 0:03:00]} 14... hxg6 {[%clk 0:02:58.6]} 15. Ng5 {[%clk 0:02:58.3]} 15...
Rc8 {[%clk 0:02:55.8]} 16. Bd2 {[%clk 0:02:46]} 16... Ne3 {[%clk 0:02:26.7]} 17.
Nxf7 {[%clk 0:02:10.2]} 17... Rxf7 {[%clk 0:01:59.2]} 18. fxe3 {[%clk
0:02:10.4]} 18... Qc7 {[%clk 0:01:58.4]} 19. Qg4 {[%clk 0:02:00.7]} 19... Qxc2
{[%clk 0:01:52]} 20. Rad1 {[%clk 0:01:48.6]} 20... Rcf8 {[%clk 0:01:33]} 21.
Qxe6 {[%clk 0:01:44.8]} 21... Bxd3 {[%clk 0:01:01.3]} 22. Qb3 {[%clk 0:01:17.5]}
22... Qxb3 {[%clk 0:00:52.3]} 23. axb3 {[%clk 0:01:17.9]} 23... Bc2 {[%clk
0:00:51.1]} 24. Rc1 {[%clk 0:01:18.7]} 24... Bxb3 {[%clk 0:00:51.5]} 25. exd4
{[%clk 0:01:18.5]} 25... Bxd4+ {[%clk 0:00:51.1]} 26. Be3 {[%clk 0:01:19.9]}
26... Bg7 {[%clk 0:00:41.9]} 27. Bf4 {[%clk 0:01:11.9]} 27... Bxb2 {[%clk
0:00:40.6]} 28. Rb1 {[%clk 0:01:04]} 28... Bd4+ {[%clk 0:00:41.4]} 29. Be3
{[%clk 0:01:05]} 29... Bxe3+ {[%clk 0:00:40.2]} 30. Rxe3 {[%clk 0:01:06.1]}
30... Bc4 {[%clk 0:00:40.3]} 31. Rc1 {[%clk 0:01:02.9]} 31... b5 {[%clk
0:00:35.3]} 32. Re5 {[%clk 0:00:56]} 32... Rd8 {[%clk 0:00:28.2]} 33. Rg5 {[%clk
0:00:49.1]} 33... Kg7 {[%clk 0:00:24.3]} 34. Ra1 {[%clk 0:00:49.8]} 34... Rd2
{[%clk 0:00:23.3]} 35. Be4 {[%clk 0:00:48.5]} 35... Rd6 {[%clk 0:00:20.3]} 36.
Rc5 {[%clk 0:00:46.3]} 36... Re7 {[%clk 0:00:19.5]} 37. Bg2 {[%clk 0:00:43.3]}
37... Rd2 {[%clk 0:00:17]} 38. Bf3 {[%clk 0:00:39.4]} 38... Rf7 {[%clk
0:00:15.8]} 39. Be4 {[%clk 0:00:40]} 39... Re7 {[%clk 0:00:15]} 40. Bf3 {[%clk
0:00:40.7]} 40... Rf7 {[%clk 0:00:09.7]} 41. Bg2 {[%clk 0:00:40.2]} 41... Rd3
{[%clk 0:00:09.5]} 42. Rg5 {[%clk 0:00:37.8]} 42... Kh6 {[%clk 0:00:08.8]} 43.
Rg4 {[%clk 0:00:39.1]} 43... Rfd7 {[%clk 0:00:09.2]} 44. Ra6 {[%clk 0:00:35.9]}
44... Rd1+ {[%clk 0:00:08.3]} 45. Kh2 {[%clk 0:00:36.8]} 45... R1d6 {[%clk
0:00:09]} 46. Ra3 {[%clk 0:00:33.5]} 46... Kg7 {[%clk 0:00:08.8]} 47. Rf4 {[%clk
0:00:28.3]} 47... Rd2 {[%clk 0:00:08.7]} 48. Raf3 {[%clk 0:00:17.4]} 48... Bd5
{[%clk 0:00:07.6]} 49. Rf2 {[%clk 0:00:16.3]} 49... Rxf2 {[%clk 0:00:07.8]} 50.
Rxf2 {[%clk 0:00:18]} 50... Bxg2 {[%clk 0:00:09.2]} 51. Kxg2 {[%clk 0:00:19.6]}
51... a5 {[%clk 0:00:09.7]} 52. Rc2 {[%clk 0:00:14.4]} 52... b4 {[%clk
0:00:09.4]} 53. Rc5 {[%clk 0:00:15.2]} 53... Ra7 {[%clk 0:00:09.5]} 54. Rb5
{[%clk 0:00:16.6]} 54... a4 {[%clk 0:00:09.8]} 55. Rxb4 {[%clk 0:00:17.3]} 55...
a3 {[%clk 0:00:10.7]} 56. Rb1 {[%clk 0:00:18.1]} 56... a2 {[%clk 0:00:11.8]} 57.
Ra1 {[%clk 0:00:19.4]} 57... Kf6 {[%clk 0:00:13.3]} 58. Kf3 {[%clk 0:00:20.8]}
58... Ke5 {[%clk 0:00:14.4]} 59. Kg4 {[%clk 0:00:21.3]} 59... Kf6 {[%clk
0:00:11.9]} 60. Kf4 {[%clk 0:00:21.7]} 60... Ra4+ {[%clk 0:00:12]} 61. Ke3
{[%clk 0:00:20.8]} 61... Kf5 {[%clk 0:00:12.8]} 62. Kf3 {[%clk 0:00:21.3]} 62...
Ra3+ {[%clk 0:00:12.9]} 63. Kf2 {[%clk 0:00:22.6]} 63... Ke4 {[%clk 0:00:14]}
64. Ke2 {[%clk 0:00:22.2]} 64... Kd4 {[%clk 0:00:13.7]} 65. g4 {[%clk
0:00:18.9]} 65... Kc3 {[%clk 0:00:11.1]} 0-1